[Event "Early-Titled-Tuesday-Blitz-February-06-2024"]
[Site "Chess.com"]
[Date "2024.02.06"]
[Round "11"]
[White "edgarhay012"]
[Black "BardArtem"]
[Result "1-0"]
[WhiteElo "2579"]
[BlackElo "2760"]
[TimeControl "180+1"]
[EndTime "10:03:52 PST"]
[Termination "edgarhay012 won by checkmate"]

1. e4 {[%clk 0:03:00.9]} 1... c5 {[%clk 0:02:58.5]} 2. Nc3 {[%clk 0:03:01.1]}
2... a6 {[%clk 0:02:49.9]} 3. Nf3 {[%clk 0:03:00.1]} 3... d6 {[%clk 0:02:49.8]}
4. g3 {[%clk 0:03:00.3]} 4... Nc6 {[%clk 0:02:49.3]} 5. Bg2 {[%clk 0:03:00.8]}
5... g6 {[%clk 0:02:45.4]} 6. d4 {[%clk 0:02:59.6]} 6... cxd4 {[%clk 0:02:45.6]}
7. Nxd4 {[%clk 0:03:00.5]} 7... Bg7 {[%clk 0:02:44.9]} 8. Be3 {[%clk 0:02:53]}
8... Nf6 {[%clk 0:02:39.8]} 9. Nxc6 {[%clk 0:02:52.9]} 9... bxc6 {[%clk
0:02:40.7]} 10. e5 {[%clk 0:02:52]} 10... Nd5 {[%clk 0:02:28.2]} 11. Nxd5 {[%clk
0:02:47.1]} 11... cxd5 {[%clk 0:02:29.1]} 12. exd6 {[%clk 0:02:40]} 12... Qxd6
{[%clk 0:02:26.7]} 13. Qxd5 {[%clk 0:02:35.5]} 13... Qxd5 {[%clk 0:02:23.7]} 14.
Bxd5 {[%clk 0:02:36.4]} 14... Rb8 {[%clk 0:02:24.4]} 15. Rd1 {[%clk 0:02:27.4]}
15... O-O {[%clk 0:02:22.3]} 16. b3 {[%clk 0:02:14.5]} 16... Bg4 {[%clk
0:02:22]} 17. f3 {[%clk 0:02:13.1]} 17... Bf5 {[%clk 0:02:20.8]} 18. c4 {[%clk
0:02:11.8]} 18... e6 {[%clk 0:02:15.4]} 19. Be4 {[%clk 0:02:12]} 19... Bxe4
{[%clk 0:02:15.8]} 20. fxe4 {[%clk 0:02:12.9]} 20... f5 {[%clk 0:02:16.6]} 21.
Ke2 {[%clk 0:02:11.4]} 21... fxe4 {[%clk 0:02:16.1]} 22. Rd7 {[%clk 0:02:11.3]}
22... a5 {[%clk 0:02:01.6]} 23. Ra7 {[%clk 0:02:07.7]} 23... Rbd8 {[%clk
0:01:57.9]} 24. c5 {[%clk 0:01:48]} 24... Rd3 {[%clk 0:01:52]} 25. Rd1 {[%clk
0:01:36.5]} 25... Rc3 {[%clk 0:01:50.9]} 26. Rxg7+ {[%clk 0:01:35.4]} 26... Kxg7
{[%clk 0:01:41.1]} 27. Bd4+ {[%clk 0:01:34.7]} 27... Kh6 {[%clk 0:01:41.6]} 28.
Bxc3 {[%clk 0:01:34.1]} 28... e5 {[%clk 0:01:40.7]} 29. Bxe5 {[%clk 0:01:32.7]}
29... e3 {[%clk 0:01:41.6]} 30. Bf4+ {[%clk 0:01:32.7]} 30... Kh5 {[%clk
0:01:41.8]} 31. Rd5+ {[%clk 0:01:32]} 31... Kg4 {[%clk 0:01:42.2]} 32. Rd7
{[%clk 0:01:30.3]} 32... g5 {[%clk 0:01:40.8]} 33. Bxe3 {[%clk 0:01:30.3]} 33...
h5 {[%clk 0:01:36.4]} 34. Rd5 {[%clk 0:01:30.1]} 34... Kh3 {[%clk 0:01:35.9]}
35. Rxg5 {[%clk 0:01:30.2]} 35... h4 {[%clk 0:01:35.6]} 36. gxh4 {[%clk
0:01:31.1]} 36... Kxh2 {[%clk 0:01:32.1]} 37. c6 {[%clk 0:01:30.3]} 37... Kh1
{[%clk 0:01:32.2]} 38. c7 {[%clk 0:01:29.9]} 38... Rf4 {[%clk 0:01:31.9]} 39.
Bxf4 {[%clk 0:01:27.7]} 39... a4 {[%clk 0:01:31.4]} 40. c8=Q {[%clk 0:01:28.5]}
40... axb3 {[%clk 0:01:30.9]} 41. Qh3# {[%clk 0:01:29.4]} 1-0

[Event "Early-Titled-Tuesday-Blitz-February-06-2024"]
[Site "Chess.com"]
[Date "2024.02.06"]
[Round "11"]
[White "cukricek"]
[Black "Arystanner"]
[Result "0-1"]
[WhiteElo "2378"]
[BlackElo "2852"]
[TimeControl "180+1"]
[EndTime "10:04:02 PST"]
[Termination "Arystanner won on time"]

1. g3 {[%clk 0:03:00.9]} 1... d6 {[%clk 0:02:56.6]} 2. Bg2 {[%clk 0:03:01.1]}
2... c6 {[%clk 0:02:56.3]} 3. Nf3 {[%clk 0:03:01.3]} 3... Bg4 {[%clk 0:02:56.5]}
4. O-O {[%clk 0:03:00.5]} 4... Qc8 {[%clk 0:02:56.6]} 5. d4 {[%clk 0:02:59.1]}
5... h5 {[%clk 0:02:56.9]} 6. e4 {[%clk 0:02:57.3]} 6... h4 {[%clk 0:02:56.5]}
7. Nbd2 {[%clk 0:02:49.3]} 7... hxg3 {[%clk 0:02:56.4]} 8. fxg3 {[%clk 0:02:48]}
8... Nd7 {[%clk 0:02:56.1]} 9. c3 {[%clk 0:02:42.4]} 9... Ngf6 {[%clk
0:02:56.3]} 10. Qc2 {[%clk 0:02:42.1]} 10... e5 {[%clk 0:02:56.7]} 11. Nc4
{[%clk 0:02:33.9]} 11... Qc7 {[%clk 0:02:57.1]} 12. Ne3 {[%clk 0:02:22.3]} 12...
Be6 {[%clk 0:02:57.3]} 13. Ng5 {[%clk 0:02:21.4]} 13... O-O-O {[%clk 0:02:56.7]}
14. d5 {[%clk 0:02:17.8]} 14... cxd5 {[%clk 0:02:55.2]} 15. exd5 {[%clk
0:02:18.7]} 15... Bg4 {[%clk 0:02:55.5]} 16. Nxf7 {[%clk 0:02:15.2]} 16... Be7
{[%clk 0:02:55.3]} 17. Nxd8 {[%clk 0:02:03.6]} 17... Qxd8 {[%clk 0:02:54]} 18.
Qa4 {[%clk 0:01:51.1]} 18... Be2 {[%clk 0:02:46.2]} 19. Re1 {[%clk 0:01:34.2]}
19... Ba6 {[%clk 0:02:46.4]} 20. Nf5 {[%clk 0:01:30.1]} 20... Bf8 {[%clk
0:02:39.9]} 21. Be3 {[%clk 0:01:08.6]} 21... Ng4 {[%clk 0:02:40.3]} 22. Bxa7
{[%clk 0:01:06]} 22... Qg5 {[%clk 0:02:39.8]} 23. Ne3 {[%clk 0:00:54.2]} 23...
Nxh2 {[%clk 0:02:33.6]} 24. Qc2 {[%clk 0:00:14.1]} 24... Qxg3 {[%clk 0:02:31.6]}
25. Qf2 {[%clk 0:00:14.8]} 25... Qg5 {[%clk 0:02:27.2]} 26. b4 {[%clk
0:00:10.8]} 26... Bd3 {[%clk 0:02:26.3]} 27. Rad1 {[%clk 0:00:09.9]} 27... e4
{[%clk 0:02:26.3]} 28. Nf5 {[%clk 0:00:05.3]} 28... Nf3+ {[%clk 0:02:24.7]} 0-1

[Event "Early-Titled-Tuesday-Blitz-February-06-2024"]
[Site "Chess.com"]
[Date "2024.02.06"]
[Round "11"]
[White "Arteler"]
[Black "SmirnovTimofey2000"]
[Result "1-0"]
[WhiteElo "2496"]
[BlackElo "1967"]
[TimeControl "180+1"]
[EndTime "10:04:15 PST"]
[Termination "Arteler won by resignation"]

1. Nf3 {[%clk 0:03:00.9]} 1... d5 {[%clk 0:02:58.3]} 2. d4 {[%clk 0:03:00.9]}
2... Nf6 {[%clk 0:02:58]} 3. c4 {[%clk 0:03:00.9]} 3... c6 {[%clk 0:02:57.7]} 4.
cxd5 {[%clk 0:03:00.8]} 4... cxd5 {[%clk 0:02:58.6]} 5. Nc3 {[%clk 0:03:00.3]}
5... Nc6 {[%clk 0:02:58.9]} 6. h3 {[%clk 0:02:50.5]} 6... a6 {[%clk 0:02:45.2]}
7. Bf4 {[%clk 0:02:48.6]} 7... e6 {[%clk 0:02:42.1]} 8. a3 {[%clk 0:02:44.6]}
8... Bd6 {[%clk 0:02:42]} 9. Bxd6 {[%clk 0:02:39.7]} 9... Qxd6 {[%clk
0:02:42.9]} 10. e3 {[%clk 0:02:40.2]} 10... O-O {[%clk 0:02:41.7]} 11. Bd3
{[%clk 0:02:40.2]} 11... b5 {[%clk 0:02:40]} 12. O-O {[%clk 0:02:35]} 12... Na5
{[%clk 0:02:26.5]} 13. b4 {[%clk 0:02:22.1]} 13... Nc4 {[%clk 0:02:26]} 14. Nd2
{[%clk 0:02:11.2]} 14... Nd7 {[%clk 0:02:07.1]} 15. Bxc4 {[%clk 0:02:02.1]}
15... bxc4 {[%clk 0:02:07.1]} 16. Na4 {[%clk 0:01:59.4]} 16... Nb6 {[%clk
0:01:53.3]} 17. Nc5 {[%clk 0:01:58.9]} 17... Bd7 {[%clk 0:01:45.7]} 18. Nf3
{[%clk 0:01:50.2]} 18... a5 {[%clk 0:01:36.4]} 19. Ne5 {[%clk 0:01:44.7]} 19...
axb4 {[%clk 0:01:25.9]} 20. axb4 {[%clk 0:01:31.6]} 20... Ba4 {[%clk 0:01:16.4]}
21. Nxa4 {[%clk 0:01:26.2]} 21... Qxb4 {[%clk 0:01:01.7]} 22. Nxb6 {[%clk
0:01:24.6]} 22... Qxb6 {[%clk 0:01:02.6]} 23. Nd7 {[%clk 0:01:18]} 23... Qd8
{[%clk 0:00:52.8]} 24. Nxf8 {[%clk 0:01:16.7]} 24... Qxf8 {[%clk 0:00:52.9]} 25.
Rxa8 {[%clk 0:01:15.3]} 25... Qxa8 {[%clk 0:00:53.8]} 1-0

[Event "Early-Titled-Tuesday-Blitz-February-06-2024"]
[Site "Chess.com"]
[Date "2024.02.06"]
[Round "11"]
[White "Viktor_Poddubnyi"]
[Black "Schattman"]
[Result "1/2-1/2"]
[WhiteElo "2271"]
[BlackElo "2387"]
[TimeControl "180+1"]
[EndTime "10:04:16 PST"]
[Termination "Game drawn by repetition"]

1. e4 {[%clk 0:03:00.2]} 1... e6 {[%clk 0:03:00.3]} 2. d4 {[%clk 0:03:00]} 2...
d5 {[%clk 0:03:00.6]} 3. Nd2 {[%clk 0:03:00.4]} 3... dxe4 {[%clk 0:03:00.4]} 4.
Nxe4 {[%clk 0:03:01.3]} 4... Nd7 {[%clk 0:03:00.6]} 5. Nf3 {[%clk 0:03:00.5]}
5... Ngf6 {[%clk 0:03:00.7]} 6. Bd3 {[%clk 0:03:01]} 6... c5 {[%clk 0:02:57.8]}
7. Nxf6+ {[%clk 0:02:54.8]} 7... Nxf6 {[%clk 0:02:56.8]} 8. dxc5 {[%clk
0:02:54.9]} 8... Bxc5 {[%clk 0:02:55.6]} 9. O-O {[%clk 0:02:52.4]} 9... O-O
{[%clk 0:02:54]} 10. Qe2 {[%clk 0:02:51.9]} 10... b6 {[%clk 0:02:52.2]} 11. a4
{[%clk 0:02:44.3]} 11... Bb7 {[%clk 0:02:50.2]} 12. a5 {[%clk 0:02:43.7]} 12...
Qc7 {[%clk 0:02:46.6]} 13. a6 {[%clk 0:02:36.3]} 13... Bc6 {[%clk 0:02:43.5]}
14. Ne5 {[%clk 0:02:33.9]} 14... Rad8 {[%clk 0:02:26.3]} 15. Nxc6 {[%clk
0:02:30.1]} 15... Qxc6 {[%clk 0:02:26.4]} 16. Bg5 {[%clk 0:02:24.4]} 16... Be7
{[%clk 0:02:26.2]} 17. Rfd1 {[%clk 0:02:05.1]} 17... Qc5 {[%clk 0:02:22]} 18.
Bh4 {[%clk 0:01:53]} 18... Qb4 {[%clk 0:02:21.8]} 19. Bxf6 {[%clk 0:01:31.7]}
19... Bxf6 {[%clk 0:02:13.6]} 20. c3 {[%clk 0:01:30.4]} 20... Qc5 {[%clk
0:02:06.9]} 21. g3 {[%clk 0:01:22.4]} 21... Qc7 {[%clk 0:02:02.7]} 22. Be4
{[%clk 0:01:15.9]} 22... g6 {[%clk 0:01:59.4]} 23. Rxd8 {[%clk 0:01:13.8]} 23...
Rxd8 {[%clk 0:01:58.5]} 24. Rd1 {[%clk 0:01:14.2]} 24... Rxd1+ {[%clk
0:01:53.7]} 25. Qxd1 {[%clk 0:01:15.1]} 25... Kg7 {[%clk 0:01:50.4]} 26. Bb7
{[%clk 0:01:08]} 26... h5 {[%clk 0:01:49.6]} 27. h4 {[%clk 0:01:07.2]} 27... Qd8
{[%clk 0:01:43.7]} 28. Qxd8 {[%clk 0:01:05]} 28... Bxd8 {[%clk 0:01:43.1]} 29.
Kf1 {[%clk 0:00:59.4]} 29... Kf6 {[%clk 0:01:42.9]} 30. Ke2 {[%clk 0:00:59.1]}
30... Ke5 {[%clk 0:01:43.2]} 31. Bc6 {[%clk 0:00:49.6]} 31... Kd6 {[%clk
0:01:41.1]} 32. Be8 {[%clk 0:00:48.6]} 32... Ke7 {[%clk 0:01:40.9]} 33. Bc6
{[%clk 0:00:48.7]} 33... Kd6 {[%clk 0:01:39.7]} 34. Be8 {[%clk 0:00:48.2]} 34...
Ke7 {[%clk 0:01:39.8]} 35. Bc6 {[%clk 0:00:48.1]} 35... Kd6 {[%clk 0:01:40.2]}
1/2-1/2

[Event "Early-Titled-Tuesday-Blitz-February-06-2024"]
[Site "Chess.com"]
[Date "2024.02.06"]
[Round "11"]
[White "ilushka"]
[Black "Kunalm64"]
[Result "1-0"]
[WhiteElo "2443"]
[BlackElo "2536"]
[TimeControl "180+1"]
[EndTime "10:04:25 PST"]
[Termination "ilushka won by checkmate"]

1. Nf3 {[%clk 0:03:00.9]} 1... Nf6 {[%clk 0:02:11.7]} 2. g3 {[%clk 0:02:53.7]}
2... d5 {[%clk 0:02:11.3]} 3. Bg2 {[%clk 0:02:53.4]} 3... c6 {[%clk 0:02:11.1]}
4. c4 {[%clk 0:02:53.4]} 4... Bg4 {[%clk 0:02:08.6]} 5. d4 {[%clk 0:02:50.6]}
5... e6 {[%clk 0:02:08.1]} 6. h3 {[%clk 0:02:50.4]} 6... Bxf3 {[%clk 0:02:05.4]}
7. Bxf3 {[%clk 0:02:51.3]} 7... Nbd7 {[%clk 0:01:58.6]} 8. Nd2 {[%clk
0:02:49.1]} 8... Bd6 {[%clk 0:01:52.4]} 9. O-O {[%clk 0:02:48.1]} 9... h5 {[%clk
0:01:49.8]} 10. h4 {[%clk 0:02:45.1]} 10... Qe7 {[%clk 0:01:40.4]} 11. e4 {[%clk
0:02:43.8]} 11... dxe4 {[%clk 0:01:39.8]} 12. Nxe4 {[%clk 0:02:43.8]} 12... Nxe4
{[%clk 0:01:39.6]} 13. Bxe4 {[%clk 0:02:43.9]} 13... Nf6 {[%clk 0:01:39]} 14.
Bf3 {[%clk 0:02:43.8]} 14... O-O-O {[%clk 0:01:35]} 15. Qa4 {[%clk 0:02:42.4]}
15... Kb8 {[%clk 0:01:34.4]} 16. Be3 {[%clk 0:02:41.5]} 16... a6 {[%clk
0:01:27.9]} 17. b4 {[%clk 0:02:40.5]} 17... e5 {[%clk 0:01:20]} 18. d5 {[%clk
0:02:13.5]} 18... e4 {[%clk 0:01:16.8]} 19. Be2 {[%clk 0:02:06.6]} 19... cxd5
{[%clk 0:01:16]} 20. c5 {[%clk 0:02:05.3]} 20... Be5 {[%clk 0:01:12.2]} 21. c6
{[%clk 0:02:00.9]} 21... d4 {[%clk 0:01:12]} 22. cxb7 {[%clk 0:02:00.6]} 22...
dxe3 {[%clk 0:01:03.2]} 23. Bxa6 {[%clk 0:01:59.6]} 23... exf2+ {[%clk 0:01:00]}
24. Rxf2 {[%clk 0:01:59.9]} 24... Bxa1 {[%clk 0:00:43]} 25. Rc2 {[%clk
0:01:59.7]} 25... Qe5 {[%clk 0:00:30.2]} 26. Kg2 {[%clk 0:01:48.2]} 26... e3
{[%clk 0:00:21.3]} 27. Be2 {[%clk 0:01:44.5]} 27... Rd2 {[%clk 0:00:18]} 28.
Qa8# {[%clk 0:01:43.9]} 1-0

[Event "Early-Titled-Tuesday-Blitz-February-06-2024"]
[Site "Chess.com"]
[Date "2024.02.06"]
[Round "11"]
[White "simonachess"]
[Black "InitiatingASC"]
[Result "0-1"]
[WhiteElo "2317"]
[BlackElo "2425"]
[TimeControl "180+1"]
[EndTime "10:04:30 PST"]
[Termination "InitiatingASC won on time"]

1. d4 {[%clk 0:03:00.9]} 1... Nf6 {[%clk 0:02:58.6]} 2. c4 {[%clk 0:03:01]} 2...
e6 {[%clk 0:02:58.1]} 3. Nc3 {[%clk 0:03:01.3]} 3... d5 {[%clk 0:02:58.6]} 4.
Bf4 {[%clk 0:02:58.9]} 4... c5 {[%clk 0:02:56.2]} 5. e3 {[%clk 0:02:58.8]} 5...
cxd4 {[%clk 0:02:53.6]} 6. exd4 {[%clk 0:02:58.8]} 6... dxc4 {[%clk 0:02:52.6]}
7. Bxc4 {[%clk 0:02:55.8]} 7... a6 {[%clk 0:02:52.4]} 8. Nf3 {[%clk 0:02:54.3]}
8... Be7 {[%clk 0:02:51.6]} 9. O-O {[%clk 0:02:53.7]} 9... O-O {[%clk
0:02:52.2]} 10. Qe2 {[%clk 0:02:53.9]} 10... b5 {[%clk 0:02:50.5]} 11. Bb3
{[%clk 0:02:51.2]} 11... Bb7 {[%clk 0:02:50.3]} 12. Rfd1 {[%clk 0:02:50.8]}
12... Nd5 {[%clk 0:02:48.5]} 13. Bg3 {[%clk 0:02:42.5]} 13... Bf6 {[%clk
0:02:48.8]} 14. Rac1 {[%clk 0:02:36.8]} 14... Nd7 {[%clk 0:02:40.6]} 15. Nxd5
{[%clk 0:02:23.5]} 15... Bxd5 {[%clk 0:02:41.5]} 16. Bxd5 {[%clk 0:02:21.5]}
16... exd5 {[%clk 0:02:42]} 17. Rc7 {[%clk 0:01:58]} 17... Re8 {[%clk
0:02:40.2]} 18. Qd2 {[%clk 0:01:50.9]} 18... Nf8 {[%clk 0:02:40.3]} 19. Rdc1
{[%clk 0:01:37.4]} 19... Ne6 {[%clk 0:02:34.8]} 20. R7c6 {[%clk 0:01:35.9]}
20... Qd7 {[%clk 0:02:29.9]} 21. Be5 {[%clk 0:01:30.7]} 21... Be7 {[%clk
0:02:16]} 22. Qc2 {[%clk 0:01:21.1]} 22... Bg5 {[%clk 0:02:06.2]} 23. Rd1 {[%clk
0:00:45]} 23... Bh6 {[%clk 0:02:04.7]} 24. g3 {[%clk 0:00:41.9]} 24... Rec8
{[%clk 0:02:03.7]} 25. Rxc8+ {[%clk 0:00:35.6]} 25... Rxc8 {[%clk 0:02:04.6]}
26. Qb3 {[%clk 0:00:35.6]} 26... f6 {[%clk 0:01:50.4]} 27. Bf4 {[%clk
0:00:32.9]} 27... Bxf4 {[%clk 0:01:50]} 28. gxf4 {[%clk 0:00:33.2]} 28... Nxf4
{[%clk 0:01:50.6]} 0-1

[Event "Early-Titled-Tuesday-Blitz-February-06-2024"]
[Site "Chess.com"]
[Date "2024.02.06"]
[Round "11"]
[White "lluiss"]
[Black "pfalcon1949"]
[Result "0-1"]
[WhiteElo "2132"]
[BlackElo "1971"]
[TimeControl "180+1"]
[EndTime "10:04:30 PST"]
[Termination "pfalcon1949 won by resignation"]

1. e4 {[%clk 0:03:00.9]} 1... e6 {[%clk 0:02:59.5]} 2. d4 {[%clk 0:02:59.8]}
2... d5 {[%clk 0:02:59.3]} 3. e5 {[%clk 0:02:56.6]} 3... c5 {[%clk 0:02:58.6]}
4. Nf3 {[%clk 0:02:55.7]} 4... Nc6 {[%clk 0:02:58.6]} 5. dxc5 {[%clk 0:02:54.9]}
5... Bxc5 {[%clk 0:02:57.4]} 6. Bd3 {[%clk 0:02:55.3]} 6... Qc7 {[%clk 0:02:51]}
7. Qe2 {[%clk 0:02:54.1]} 7... Nb4 {[%clk 0:02:49.1]} 8. O-O {[%clk 0:02:51.3]}
8... Nxd3 {[%clk 0:02:49.2]} 9. cxd3 {[%clk 0:02:51.3]} 9... Ne7 {[%clk
0:02:48.9]} 10. d4 {[%clk 0:02:51.5]} 10... Bb6 {[%clk 0:02:48.1]} 11. Bg5
{[%clk 0:02:51]} 11... Ng6 {[%clk 0:02:45.7]} 12. Rc1 {[%clk 0:02:48.7]} 12...
Qd7 {[%clk 0:02:42.8]} 13. Nc3 {[%clk 0:02:22.9]} 13... h6 {[%clk 0:02:39.7]}
14. Be3 {[%clk 0:02:19.2]} 14... a6 {[%clk 0:02:39.2]} 15. b3 {[%clk 0:02:15.8]}
15... O-O {[%clk 0:02:37.2]} 16. Na4 {[%clk 0:02:15.7]} 16... Bd8 {[%clk
0:02:30.1]} 17. Nc5 {[%clk 0:02:13.3]} 17... Qb5 {[%clk 0:02:26.6]} 18. Qc2
{[%clk 0:02:01.7]} 18... Be7 {[%clk 0:02:13.5]} 19. a4 {[%clk 0:01:29.6]} 19...
Qe8 {[%clk 0:02:02.2]} 20. a5 {[%clk 0:01:25]} 20... Rb8 {[%clk 0:02:00.1]} 21.
Na4 {[%clk 0:01:21.6]} 21... Bd7 {[%clk 0:01:57.2]} 22. Nb6 {[%clk 0:01:21.3]}
22... Bc6 {[%clk 0:01:56.5]} 23. Qd2 {[%clk 0:01:18]} 23... Kh7 {[%clk 0:01:54]}
24. Rc2 {[%clk 0:01:16.9]} 24... Nh4 {[%clk 0:01:48.6]} 25. Nxh4 {[%clk
0:01:14.7]} 25... Bxh4 {[%clk 0:01:48]} 26. Rac1 {[%clk 0:01:13.7]} 26... Bd8
{[%clk 0:01:36.9]} 27. Qb4 {[%clk 0:01:09.8]} 27... Bc7 {[%clk 0:01:30]} 28. Rd1
{[%clk 0:00:54.6]} 28... f5 {[%clk 0:01:25.8]} 29. Bc1 {[%clk 0:00:51.7]} 29...
f4 {[%clk 0:01:23.4]} 30. f3 {[%clk 0:00:48]} 30... Qg6 {[%clk 0:01:21.3]} 31.
Ba3 {[%clk 0:00:44.7]} 31... Qxc2 {[%clk 0:01:17.8]} 0-1

[Event "Early-Titled-Tuesday-Blitz-February-06-2024"]
[Site "Chess.com"]
[Date "2024.02.06"]
[Round "11"]
[White "manitodeplomo"]
[Black "JonasEilenberg"]
[Result "1/2-1/2"]
[WhiteElo "2598"]
[BlackElo "2533"]
[TimeControl "180+1"]
[EndTime "10:04:39 PST"]
[Termination "Game drawn by repetition"]

1. d4 {[%clk 0:02:55.7]} 1... d5 {[%clk 0:02:59.7]} 2. c4 {[%clk 0:02:54.5]}
2... e6 {[%clk 0:03:00.2]} 3. Nf3 {[%clk 0:02:54.4]} 3... c6 {[%clk 0:03:00.1]}
4. Bg5 {[%clk 0:02:52.8]} 4... Be7 {[%clk 0:02:58.5]} 5. Bxe7 {[%clk 0:02:52]}
5... Qxe7 {[%clk 0:02:59.4]} 6. e3 {[%clk 0:02:51.5]} 6... Nf6 {[%clk
0:02:59.9]} 7. Nc3 {[%clk 0:02:52]} 7... O-O {[%clk 0:03:00.3]} 8. Qc2 {[%clk
0:02:51.9]} 8... Nbd7 {[%clk 0:03:00.7]} 9. O-O-O {[%clk 0:02:49]} 9... a6
{[%clk 0:02:44.9]} 10. Kb1 {[%clk 0:02:46.3]} 10... b5 {[%clk 0:02:45.1]} 11.
cxd5 {[%clk 0:02:44.5]} 11... cxd5 {[%clk 0:02:45]} 12. Bd3 {[%clk 0:02:23.9]}
12... Bb7 {[%clk 0:02:43.3]} 13. Ne5 {[%clk 0:02:08.2]} 13... Rfc8 {[%clk
0:02:41.3]} 14. Qd2 {[%clk 0:02:07.3]} 14... Nb6 {[%clk 0:02:37.2]} 15. b3
{[%clk 0:02:00.7]} 15... b4 {[%clk 0:02:35.9]} 16. Ne2 {[%clk 0:01:59.8]} 16...
a5 {[%clk 0:02:33.8]} 17. Rc1 {[%clk 0:02:00.3]} 17... a4 {[%clk 0:02:33.1]} 18.
Rxc8+ {[%clk 0:02:00.3]} 18... Rxc8 {[%clk 0:02:34]} 19. Rc1 {[%clk 0:02:00.5]}
19... axb3 {[%clk 0:02:28.9]} 20. Rxc8+ {[%clk 0:01:59.9]} 20... Nxc8 {[%clk
0:02:27.9]} 21. axb3 {[%clk 0:02:00.8]} 21... Nd7 {[%clk 0:02:26.3]} 22. Qc2
{[%clk 0:01:58.1]} 22... Nxe5 {[%clk 0:02:24.9]} 23. dxe5 {[%clk 0:01:59]} 23...
g6 {[%clk 0:02:19.8]} 24. Nd4 {[%clk 0:01:58.7]} 24... Nb6 {[%clk 0:02:15.3]}
25. f4 {[%clk 0:01:55.9]} 25... Kg7 {[%clk 0:02:06.8]} 26. g3 {[%clk 0:01:55]}
26... h5 {[%clk 0:02:05.9]} 27. Nb5 {[%clk 0:01:47.1]} 27... Ba6 {[%clk
0:01:55.2]} 28. Nd6 {[%clk 0:01:41.8]} 28... Bxd3 {[%clk 0:01:50.2]} 29. Qxd3
{[%clk 0:01:42.7]} 29... Qa7 {[%clk 0:01:50.1]} 30. Qd4 {[%clk 0:01:34.8]} 30...
Qa6 {[%clk 0:01:20.5]} 31. Qxb4 {[%clk 0:01:30.2]} 31... Qf1+ {[%clk 0:01:18]}
32. Kb2 {[%clk 0:01:29.5]} 32... Qe2+ {[%clk 0:01:18.2]} 33. Kb1 {[%clk
0:01:07.4]} 33... Qf1+ {[%clk 0:01:11.9]} 34. Ka2 {[%clk 0:01:03.2]} 34... Qe2+
{[%clk 0:01:12.1]} 35. Kb1 {[%clk 0:00:56.5]} 35... Qd1+ {[%clk 0:01:11.6]} 36.
Kb2 {[%clk 0:00:53.8]} 36... Qe2+ {[%clk 0:01:12]} 37. Kb1 {[%clk 0:00:53.7]}
1/2-1/2

[Event "Early-Titled-Tuesday-Blitz-February-06-2024"]
[Site "Chess.com"]
[Date "2024.02.06"]
[Round "11"]
[White "Let_it_be_1"]
[Black "Flaccidmoves"]
[Result "1-0"]
[WhiteElo "2593"]
[BlackElo "2460"]
[TimeControl "180+1"]
[EndTime "10:05:04 PST"]
[Termination "Let_it_be_1 won by resignation"]

1. e4 {[%clk 0:03:00.9]} 1... e5 {[%clk 0:02:59]} 2. Nf3 {[%clk 0:03:01]} 2...
Nc6 {[%clk 0:02:59.3]} 3. Bb5 {[%clk 0:03:01.1]} 3... a6 {[%clk 0:02:59.1]} 4.
Ba4 {[%clk 0:03:01.4]} 4... Nf6 {[%clk 0:02:59.3]} 5. d4 {[%clk 0:03:01.8]} 5...
exd4 {[%clk 0:02:51.7]} 6. O-O {[%clk 0:03:01.8]} 6... Nxe4 {[%clk 0:02:44.6]}
7. Re1 {[%clk 0:03:00.4]} 7... d5 {[%clk 0:02:43.2]} 8. Nxd4 {[%clk 0:03:00.5]}
8... Bc5 {[%clk 0:02:26.2]} 9. Bxc6+ {[%clk 0:02:50]} 9... bxc6 {[%clk
0:02:22.1]} 10. f3 {[%clk 0:02:48.7]} 10... Qh4 {[%clk 0:02:05.2]} 11. g3 {[%clk
0:02:48.6]} 11... Qf6 {[%clk 0:02:00]} 12. c3 {[%clk 0:02:42.6]} 12... O-O
{[%clk 0:01:44.8]} 13. fxe4 {[%clk 0:02:42.3]} 13... dxe4 {[%clk 0:01:38.6]} 14.
Be3 {[%clk 0:02:38.7]} 14... Bh3 {[%clk 0:01:33.9]} 15. Qh5 {[%clk 0:02:30.4]}
15... Bxd4 {[%clk 0:01:19.4]} 16. Bxd4 {[%clk 0:02:27.7]} 16... Qf5 {[%clk
0:01:19.2]} 17. Qxf5 {[%clk 0:02:24]} 17... Bxf5 {[%clk 0:01:20.1]} 18. Nd2
{[%clk 0:02:22.4]} 18... Rfe8 {[%clk 0:01:20.1]} 19. Nc4 {[%clk 0:02:08.9]}
19... Be6 {[%clk 0:01:02.1]} 20. Ne3 {[%clk 0:01:30.8]} 20... f5 {[%clk
0:00:59.5]} 21. Rf1 {[%clk 0:01:29.3]} 21... g6 {[%clk 0:00:59]} 22. b3 {[%clk
0:01:28.1]} 22... Rf8 {[%clk 0:00:57.8]} 23. Be5 {[%clk 0:01:25.1]} 23... Rf7
{[%clk 0:00:46.1]} 24. h4 {[%clk 0:01:23.2]} 24... Rd8 {[%clk 0:00:44]} 25. Rad1
{[%clk 0:01:22.1]} 25... Rdd7 {[%clk 0:00:28.4]} 26. Rxd7 {[%clk 0:01:18.3]}
26... Rxd7 {[%clk 0:00:29.3]} 27. Rd1 {[%clk 0:01:17.6]} 27... Rxd1+ {[%clk
0:00:25.5]} 28. Nxd1 {[%clk 0:01:17.6]} 28... h6 {[%clk 0:00:25.8]} 29. Bxc7
{[%clk 0:01:16.8]} 29... g5 {[%clk 0:00:25.9]} 30. hxg5 {[%clk 0:01:16.2]} 30...
hxg5 {[%clk 0:00:26.8]} 31. Kf2 {[%clk 0:01:15.6]} 31... Kf7 {[%clk 0:00:25.9]}
32. Ke3 {[%clk 0:01:15.8]} 32... Kg6 {[%clk 0:00:24.8]} 33. Kd4 {[%clk
0:01:13.8]} 33... Kh5 {[%clk 0:00:22.1]} 34. Ne3 {[%clk 0:01:14]} 34... f4
{[%clk 0:00:20.3]} 35. gxf4 {[%clk 0:01:13.9]} 1-0